[Event "*** Titled Tuesday Blitz"]
[Site "Chess.com"]
[Date "2020.11.03"]
[Round "4"]
[White "Ausbildung"]
[Black "MasterKroket"]
[Result "0-1"]
[WhiteElo "2240"]
[BlackElo "2422"]
[TimeControl "180+1"]
[EndTime "10:42:04 PST"]
[Termination "MasterKroket won by resignation"]

1. e4 {[%clk 0:03:00.9]} 1... c5 {[%clk 0:02:59]} 2. c4 {[%clk 0:02:59.8]} 2...
Nc6 {[%clk 0:02:58.5]} 3. Nc3 {[%clk 0:02:59]} 3... e6 {[%clk 0:02:56.3]} 4.
Nge2 {[%clk 0:02:55.3]} 4... Nf6 {[%clk 0:02:55.9]} 5. g3 {[%clk 0:02:50.3]}
5... d6 {[%clk 0:02:53.2]} 6. Bg2 {[%clk 0:02:49.3]} 6... g6 {[%clk 0:02:53.6]}
7. d3 {[%clk 0:02:46.8]} 7... Bg7 {[%clk 0:02:53.7]} 8. O-O {[%clk 0:02:45.7]}
8... O-O {[%clk 0:02:53.7]} 9. Rb1 {[%clk 0:02:44.5]} 9... Rb8 {[%clk
0:02:44.3]} 10. h3 {[%clk 0:02:41.7]} 10... a6 {[%clk 0:02:41.3]} 11. Be3 {[%clk
0:02:40]} 11... b5 {[%clk 0:02:40.4]} 12. b3 {[%clk 0:02:37.1]} 12... Nd7 {[%clk
0:02:34.3]} 13. d4 {[%clk 0:02:34.2]} 13... cxd4 {[%clk 0:02:30.1]} 14. Nxd4
{[%clk 0:02:32.6]} 14... Nxd4 {[%clk 0:02:15.3]} 15. Bxd4 {[%clk 0:02:31.3]}
15... b4 {[%clk 0:02:04.8]} 16. Bxg7 {[%clk 0:02:26.7]} 16... Kxg7 {[%clk
0:02:04.5]} 17. Na4 {[%clk 0:02:23.9]} 17... Qc7 {[%clk 0:02:03.9]} 18. Qd4+
{[%clk 0:02:20.6]} 18... e5 {[%clk 0:02:02.5]} 19. Qd2 {[%clk 0:02:15.7]} 19...
Rd8 {[%clk 0:01:58.2]} 20. Rbd1 {[%clk 0:02:13.3]} 20... Nc5 {[%clk 0:01:55.3]}
21. Nxc5 {[%clk 0:02:10]} 21... Qxc5 {[%clk 0:01:56.2]} 22. Qg5 {[%clk
0:01:56.2]} 22... f6 {[%clk 0:01:53.8]} 23. Qd2 {[%clk 0:01:52.2]} 23... a5
{[%clk 0:01:49.3]} 24. Kh2 {[%clk 0:01:50.4]} 24... Be6 {[%clk 0:01:40.4]} 25.
f4 {[%clk 0:01:47.2]} 25... Rb7 {[%clk 0:01:39.4]} 26. Bf3 {[%clk 0:01:41.6]}
26... a4 {[%clk 0:01:36.5]} 27. h4 {[%clk 0:01:38.5]} 27... axb3 {[%clk
0:01:35.1]} 28. axb3 {[%clk 0:01:37.4]} 28... Ra7 {[%clk 0:01:31.7]} 29. h5
{[%clk 0:01:36]} 29... Ra6 {[%clk 0:01:22.9]} 30. h6+ {[%clk 0:01:35]} 30... Kg8
{[%clk 0:01:19.3]} 31. fxe5 {[%clk 0:01:33.6]} 31... fxe5 {[%clk 0:01:18.8]} 32.
Qg5 {[%clk 0:01:26.8]} 32... Rf8 {[%clk 0:01:10.8]} 33. Qe7 {[%clk 0:01:21]}
33... Bf7 {[%clk 0:00:53.2]} 34. Bg4 {[%clk 0:01:19.1]} 34... Ra2+ {[%clk
0:00:43.4]} 35. Kh3 {[%clk 0:01:15.4]} 35... Qe3 {[%clk 0:00:43.4]} 36. Qh4
{[%clk 0:00:52.1]} 36... Qxe4 {[%clk 0:00:31.7]} 37. Rf3 {[%clk 0:00:39.1]}
37... Qe2 {[%clk 0:00:24.1]} 38. Bh5 {[%clk 0:00:11.7]} 38... Be6+ {[%clk
0:00:18.1]} 39. Rf5 {[%clk 0:00:06.8]} 39... Bxf5+ {[%clk 0:00:15.1]} 0-1

[Event "*** Titled Tuesday Blitz"]
[Site "Chess.com"]
[Date "2020.11.03"]
[Round "4"]
[White "nocnypako"]
[Black "Andreikka"]
[Result "0-1"]
[WhiteElo "2574"]
[BlackElo "2911"]
[TimeControl "180+1"]
[EndTime "10:42:05 PST"]
[Termination "Andreikka won on time"]

1. d4 {[%clk 0:03:00.9]} 1... Nf6 {[%clk 0:02:57.7]} 2. c4 {[%clk 0:02:55.7]}
2... e6 {[%clk 0:02:52.7]} 3. Nc3 {[%clk 0:02:55.5]} 3... Bb4 {[%clk 0:02:52.1]}
4. e3 {[%clk 0:02:55.6]} 4... d5 {[%clk 0:02:51.5]} 5. a3 {[%clk 0:02:53.1]}
5... Be7 {[%clk 0:02:51.2]} 6. Nf3 {[%clk 0:02:50.6]} 6... b6 {[%clk 0:02:51]}
7. cxd5 {[%clk 0:02:49.3]} 7... exd5 {[%clk 0:02:49.8]} 8. Bd3 {[%clk
0:02:49.6]} 8... O-O {[%clk 0:02:50.1]} 9. O-O {[%clk 0:02:49.9]} 9... Nbd7
{[%clk 0:02:50.8]} 10. b4 {[%clk 0:02:47.6]} 10... Bb7 {[%clk 0:02:46.1]} 11.
Bb2 {[%clk 0:02:47.3]} 11... a6 {[%clk 0:02:46.1]} 12. Ne5 {[%clk 0:02:46.6]}
12... Bd6 {[%clk 0:02:46.5]} 13. f4 {[%clk 0:02:45.9]} 13... b5 {[%clk
0:02:45.4]} 14. Qf3 {[%clk 0:02:38.2]} 14... Nb6 {[%clk 0:02:42.5]} 15. g4
{[%clk 0:02:36.5]} 15... Nc4 {[%clk 0:02:33.5]} 16. Bxc4 {[%clk 0:02:22.2]}
16... bxc4 {[%clk 0:02:33.1]} 17. g5 {[%clk 0:02:16.9]} 17... Ne4 {[%clk
0:02:32.9]} 18. Nxe4 {[%clk 0:02:16.1]} 18... dxe4 {[%clk 0:02:32.8]} 19. Qe2
{[%clk 0:02:13.4]} 19... Bd5 {[%clk 0:02:08.4]} 20. Nxc4 {[%clk 0:02:08]} 20...
Be7 {[%clk 0:02:07.1]} 21. Rac1 {[%clk 0:02:05.2]} 21... f6 {[%clk 0:02:01.8]}
22. h4 {[%clk 0:01:50.9]} 22... Qd7 {[%clk 0:02:00.6]} 23. Rf2 {[%clk
0:01:34.2]} 23... Kh8 {[%clk 0:01:53.2]} 24. Kh1 {[%clk 0:01:32.3]} 24... Bd6
{[%clk 0:01:23.1]} 25. Nxd6 {[%clk 0:01:17.6]} 25... cxd6 {[%clk 0:01:24]} 26.
Qf1 {[%clk 0:00:59.3]} 26... h6 {[%clk 0:01:11.2]} 27. Qg2 {[%clk 0:00:49.6]}
27... Qf5 {[%clk 0:01:10.6]} 28. Rg1 {[%clk 0:00:47.5]} 28... Rg8 {[%clk
0:01:10.1]} 29. Qg4 {[%clk 0:00:43.4]} 29... Qxg4 {[%clk 0:01:05.7]} 30. Rxg4
{[%clk 0:00:44.3]} 30... Rac8 {[%clk 0:01:03.2]} 31. gxf6 {[%clk 0:00:38.7]}
31... gxf6 {[%clk 0:01:03.1]} 32. Rxg8+ {[%clk 0:00:39.2]} 32... Kxg8 {[%clk
0:01:04]} 33. Kg2 {[%clk 0:00:39.2]} 33... Kf7 {[%clk 0:01:03.6]} 34. Kf1 {[%clk
0:00:38.8]} 34... Kg6 {[%clk 0:01:02.5]} 35. Rg2+ {[%clk 0:00:37.9]} 35... Kh5
{[%clk 0:01:02.3]} 36. Rh2 {[%clk 0:00:35.8]} 36... Kg4 {[%clk 0:00:59.5]} 37.
Ke1 {[%clk 0:00:35]} 37... Kg3 {[%clk 0:00:57.4]} 38. Rd2 {[%clk 0:00:34]} 38...
Kxh4 {[%clk 0:00:53.3]} 39. Rg2 {[%clk 0:00:33.1]} 39... Kh3 {[%clk 0:00:52]}
40. Kf1 {[%clk 0:00:28.8]} 40... h5 {[%clk 0:00:49.8]} 41. Kg1 {[%clk
0:00:28.9]} 41... h4 {[%clk 0:00:50.2]} 42. a4 {[%clk 0:00:28.9]} 42... Rc4
{[%clk 0:00:46.2]} 43. b5 {[%clk 0:00:29.1]} 43... Rxa4 {[%clk 0:00:45.3]} 44.
bxa6 {[%clk 0:00:27.9]} 44... Rxa6 {[%clk 0:00:45.6]} 45. Bc3 {[%clk 0:00:27.4]}
45... Rc6 {[%clk 0:00:44.3]} 46. Be1 {[%clk 0:00:27.2]} 46... Rc1 {[%clk
0:00:41.1]} 47. Rh2+ {[%clk 0:00:27.1]} 47... Kg4 {[%clk 0:00:41.7]} 48. Kf2
{[%clk 0:00:27.6]} 48... h3 {[%clk 0:00:39.3]} 49. Rh1 {[%clk 0:00:27.4]} 49...
Rc2+ {[%clk 0:00:39.6]} 0-1

[Event "*** Titled Tuesday Blitz"]
[Site "Chess.com"]
[Date "2020.11.03"]
[Round "4"]
[White "Maxim_e2e4"]
[Black "Roza_Idrisova"]
[Result "0-1"]
[WhiteElo "2381"]
[BlackElo "2201"]
[TimeControl "180+1"]
[EndTime "10:42:05 PST"]
[Termination "Roza_Idrisova won on time"]

1. e4 {[%clk 0:03:00.9]} 1... c6 {[%clk 0:02:59.8]} 2. d4 {[%clk 0:02:59.6]}
2... d5 {[%clk 0:02:59.9]} 3. exd5 {[%clk 0:02:59.5]} 3... cxd5 {[%clk
0:02:59.9]} 4. Bd3 {[%clk 0:03:00]} 4... Nc6 {[%clk 0:03:00]} 5. c3 {[%clk
0:02:59.5]} 5... Nf6 {[%clk 0:02:59.2]} 6. Bf4 {[%clk 0:02:57.9]} 6... Bg4
{[%clk 0:02:58.5]} 7. Qb3 {[%clk 0:02:57.1]} 7... Na5 {[%clk 0:02:58.2]} 8. Qa4+
{[%clk 0:02:55.1]} 8... Bd7 {[%clk 0:02:57.8]} 9. Qc2 {[%clk 0:02:54.5]} 9...
Rc8 {[%clk 0:02:57.6]} 10. Nd2 {[%clk 0:02:47.8]} 10... e6 {[%clk 0:02:55.3]}
11. Ngf3 {[%clk 0:02:45.8]} 11... Be7 {[%clk 0:02:54.6]} 12. O-O {[%clk
0:02:44.9]} 12... b5 {[%clk 0:02:53.1]} 13. a3 {[%clk 0:02:32.1]} 13... Nc4
{[%clk 0:02:49.7]} 14. Ne5 {[%clk 0:02:26.3]} 14... a5 {[%clk 0:02:39.4]} 15.
Rfe1 {[%clk 0:01:21.2]} 15... O-O {[%clk 0:02:37.3]} 16. g4 {[%clk 0:00:50.6]}
16... Nxd2 {[%clk 0:02:31.4]} 17. Qxd2 {[%clk 0:00:49]} 17... Be8 {[%clk
0:02:21.1]} 18. Re3 {[%clk 0:00:43.8]} 18... Nd7 {[%clk 0:02:19.3]} 19. Rh3
{[%clk 0:00:35.7]} 19... g6 {[%clk 0:02:15.6]} 20. Bh6 {[%clk 0:00:33.8]} 20...
Nxe5 {[%clk 0:02:08.9]} 21. dxe5 {[%clk 0:00:34.1]} 21... Bc6 {[%clk 0:02:03.2]}
22. Bxf8 {[%clk 0:00:31.7]} 22... Bxf8 {[%clk 0:02:03.2]} 23. Qf4 {[%clk
0:00:28]} 23... Qe7 {[%clk 0:01:42.1]} 24. Re1 {[%clk 0:00:25.3]} 24... Rd8
{[%clk 0:01:39.4]} 25. g5 {[%clk 0:00:21.4]} 25... Bg7 {[%clk 0:01:35.1]} 26.
Qh4 {[%clk 0:00:19.5]} 26... Qd7 {[%clk 0:01:32.8]} 27. Qxh7+ {[%clk 0:00:18.1]}
27... Kf8 {[%clk 0:01:32.6]} 28. Qh4 {[%clk 0:00:16.9]} 28... Ke7 {[%clk
0:01:29]} 29. Qf4 {[%clk 0:00:16.2]} 29... d4 {[%clk 0:01:22.9]} 30. cxd4 {[%clk
0:00:14.3]} 30... Qxd4 {[%clk 0:01:22.2]} 31. Qxd4 {[%clk 0:00:13.9]} 31... Rxd4
{[%clk 0:01:22.1]} 32. Bf1 {[%clk 0:00:13.6]} 32... Rg4+ {[%clk 0:01:18.9]} 33.
Rg3 {[%clk 0:00:13.5]} 33... Rd4 {[%clk 0:01:15.7]} 34. Rc3 {[%clk 0:00:12.5]}
34... Kd7 {[%clk 0:01:12.8]} 35. h3 {[%clk 0:00:11.6]} 35... b4 {[%clk
0:01:08.4]} 36. axb4 {[%clk 0:00:09.5]} 36... axb4 {[%clk 0:01:08.3]} 37. Rd3
{[%clk 0:00:09.6]} 37... Rxd3 {[%clk 0:01:06.2]} 38. Bxd3 {[%clk 0:00:10.5]}
38... Kc7 {[%clk 0:00:58.2]} 39. f4 {[%clk 0:00:10.4]} 39... Bf8 {[%clk
0:00:57.2]} 40. Kf2 {[%clk 0:00:10.5]} 40... Bc5+ {[%clk 0:00:56.1]} 41. Kg3
{[%clk 0:00:10.6]} 41... Bd5 {[%clk 0:00:54.2]} 42. Rc1 {[%clk 0:00:09.2]} 42...
Kb6 {[%clk 0:00:54.2]} 43. Be2 {[%clk 0:00:07.3]} 43... Bd4 {[%clk 0:00:51.7]}
44. Rc2 {[%clk 0:00:04]} 44... Be4 {[%clk 0:00:47.8]} 45. Rd2 {[%clk 0:00:04]}
45... Bxb2 {[%clk 0:00:42]} 46. Rd7 {[%clk 0:00:02.9]} 46... Bc3 {[%clk
0:00:39.1]} 47. Bc4 {[%clk 0:00:01.1]} 47... Kc5 {[%clk 0:00:35.3]} 0-1

[Event "*** Titled Tuesday Blitz"]
[Site "Chess.com"]
[Date "2020.11.03"]
[Round "4"]
[White "kirillshevchenko"]
[Black "AndrewMaco"]
[Result "1-0"]
[WhiteElo "2880"]
[BlackElo "2664"]
[TimeControl "180+1"]
[EndTime "10:42:06 PST"]
[Termination "kirillshevchenko won by checkmate"]

1. e4 {[%clk 0:02:28.5]} 1... c6 {[%clk 0:02:58.9]} 2. d4 {[%clk 0:02:28.2]}
2... d5 {[%clk 0:02:59.8]} 3. f3 {[%clk 0:02:28.2]} 3... e6 {[%clk 0:02:59.6]}
4. Nc3 {[%clk 0:02:25.6]} 4... Bb4 {[%clk 0:02:59.5]} 5. Bd2 {[%clk 0:02:23.5]}
5... Bxc3 {[%clk 0:02:16.2]} 6. Bxc3 {[%clk 0:02:22.3]} 6... dxe4 {[%clk
0:02:16.7]} 7. Nh3 {[%clk 0:01:35.2]} 7... Nf6 {[%clk 0:02:11]} 8. Qd2 {[%clk
0:01:27.6]} 8... exf3 {[%clk 0:02:06.6]} 9. gxf3 {[%clk 0:01:24.2]} 9... Nbd7
{[%clk 0:01:58.5]} 10. Rg1 {[%clk 0:01:24.1]} 10... g6 {[%clk 0:01:46.1]} 11. d5
{[%clk 0:01:17.9]} 11... cxd5 {[%clk 0:01:37.3]} 12. O-O-O {[%clk 0:01:17.4]}
12... e5 {[%clk 0:01:31.9]} 13. Qh6 {[%clk 0:01:07.2]} 13... Qe7 {[%clk
0:01:16.8]} 14. Bb5 {[%clk 0:01:04]} 14... a6 {[%clk 0:01:06.7]} 15. Ba4 {[%clk
0:00:41.2]} 15... b5 {[%clk 0:01:03.2]} 16. Bb3 {[%clk 0:00:41.2]} 16... Bb7
{[%clk 0:01:03.6]} 17. Ba5 {[%clk 0:00:36.9]} 17... Qf8 {[%clk 0:00:48.7]} 18.
Qh4 {[%clk 0:00:33.9]} 18... Qd6 {[%clk 0:00:32.5]} 19. Ng5 {[%clk 0:00:29.3]}
19... O-O {[%clk 0:00:31.1]} 20. Bb4 {[%clk 0:00:24.9]} 20... Nc5 {[%clk
0:00:31.4]} 21. Qh6 {[%clk 0:00:14.1]} 21... Rfc8 {[%clk 0:00:26.1]} 22. f4
{[%clk 0:00:11]} 22... exf4 {[%clk 0:00:16.9]} 23. Kb1 {[%clk 0:00:09]} 23...
Qf8 {[%clk 0:00:14.7]} 24. Qh4 {[%clk 0:00:09]} 24... Qg7 {[%clk 0:00:12.3]} 25.
Qxf4 {[%clk 0:00:08.4]} 25... Nce4 {[%clk 0:00:09.9]} 26. Nxe4 {[%clk
0:00:05.5]} 26... Nxe4 {[%clk 0:00:10.8]} 27. Bxd5 {[%clk 0:00:05]} 27... Bxd5
{[%clk 0:00:11.5]} 28. Rxd5 {[%clk 0:00:05.7]} 28... Re8 {[%clk 0:00:09.4]} 29.
Re1 {[%clk 0:00:03.8]} 29... Nf6 {[%clk 0:00:05.1]} 30. Rde5 {[%clk 0:00:02.8]}
30... Rxe5 {[%clk 0:00:04.6]} 31. Qxe5 {[%clk 0:00:03.7]} 31... Nh5 {[%clk
0:00:04.8]} 32. Qd5 {[%clk 0:00:03.1]} 32... Rc8 {[%clk 0:00:03.1]} 33. Qb7
{[%clk 0:00:02.2]} 33... Rd8 {[%clk 0:00:02.4]} 34. Qc7 {[%clk 0:00:02.6]} 34...
Qf6 {[%clk 0:00:02.9]} 35. Bc3 {[%clk 0:00:02.6]} 35... Qd6 {[%clk 0:00:02.9]}
36. Qxd6 {[%clk 0:00:02.4]} 36... Rd7 {[%clk 0:00:03.8]} 37. Re8# {[%clk
0:00:02.6]} 1-0

[Event "*** Titled Tuesday Blitz"]
[Site "Chess.com"]
[Date "2020.11.03"]
[Round "4"]
[White "Chessalary"]
[Black "Korchmar_Vasiliy"]
[Result "0-1"]
[WhiteElo "2406"]
[BlackElo "2623"]
[TimeControl "180+1"]
[EndTime "10:42:07 PST"]
[Termination "Korchmar_Vasiliy won by resignation"]

1. d4 {[%clk 0:02:56.6]} 1... Nf6 {[%clk 0:02:59.7]} 2. Nf3 {[%clk 0:02:56.7]}
2... d5 {[%clk 0:02:58.5]} 3. e3 {[%clk 0:02:57.2]} 3... Bg4 {[%clk 0:02:56.9]}
4. Be2 {[%clk 0:02:57.3]} 4... e6 {[%clk 0:02:55.3]} 5. O-O {[%clk 0:02:57]}
5... Nbd7 {[%clk 0:02:55.4]} 6. Nbd2 {[%clk 0:02:57]} 6... Bd6 {[%clk
0:02:54.4]} 7. b3 {[%clk 0:02:57.3]} 7... Ne4 {[%clk 0:02:43.7]} 8. h3 {[%clk
0:02:53.5]} 8... Nc3 {[%clk 0:02:40.8]} 9. Qe1 {[%clk 0:02:52.8]} 9... Nxe2+
{[%clk 0:02:22.1]} 10. Qxe2 {[%clk 0:02:53.2]} 10... Bh5 {[%clk 0:02:22.3]} 11.
Bb2 {[%clk 0:02:51.4]} 11... O-O {[%clk 0:02:22.4]} 12. e4 {[%clk 0:02:49.8]}
12... a5 {[%clk 0:02:07.2]} 13. c4 {[%clk 0:02:46.3]} 13... c6 {[%clk
0:01:58.4]} 14. Rfe1 {[%clk 0:02:40.6]} 14... a4 {[%clk 0:01:57.8]} 15. c5
{[%clk 0:02:35.1]} 15... Bf4 {[%clk 0:01:54.7]} 16. b4 {[%clk 0:02:18.8]} 16...
Bxd2 {[%clk 0:01:51.1]} 17. Qxd2 {[%clk 0:02:19.4]} 17... Bxf3 {[%clk
0:01:51.2]} 18. gxf3 {[%clk 0:02:18.4]} 18... a3 {[%clk 0:01:47.4]} 19. Bc3
{[%clk 0:02:14.4]} 19... Qh4 {[%clk 0:01:46.6]} 20. Qe3 {[%clk 0:02:08.6]} 20...
Qxh3 {[%clk 0:01:42.5]} 21. f4 {[%clk 0:01:50.2]} 21... Qg4+ {[%clk 0:01:41.5]}
22. Qg3 {[%clk 0:01:49.8]} 22... Qxg3+ {[%clk 0:01:41.3]} 23. fxg3 {[%clk
0:01:50.7]} 23... dxe4 {[%clk 0:01:37.9]} 24. Rxe4 {[%clk 0:01:51.6]} 24... Nf6
{[%clk 0:01:38.5]} 25. Re2 {[%clk 0:01:50.4]} 25... Nd5 {[%clk 0:01:38.8]} 26.
Bd2 {[%clk 0:01:49.9]} 26... Ra4 {[%clk 0:01:37]} 27. Rb1 {[%clk 0:01:49.2]}
27... b5 {[%clk 0:01:18.8]} 28. Re5 {[%clk 0:01:44.1]} 28... Rd8 {[%clk
0:01:10.9]} 29. f5 {[%clk 0:01:40.1]} 29... Nc7 {[%clk 0:01:08.4]} 30. fxe6
{[%clk 0:01:36.9]} 30... Nxe6 {[%clk 0:01:06.1]} 31. Bc3 {[%clk 0:01:34.6]}
31... Nc7 {[%clk 0:00:46.8]} 32. Rbe1 {[%clk 0:01:32.4]} 32... h6 {[%clk
0:00:44.3]} 33. Rf1 {[%clk 0:01:01.3]} 33... Nd5 {[%clk 0:00:43.4]} 34. Bd2
{[%clk 0:00:44.6]} 34... Nxb4 {[%clk 0:00:41.7]} 35. Re7 {[%clk 0:00:38.3]}
35... Nd5 {[%clk 0:00:31.5]} 36. Rexf7 {[%clk 0:00:34.6]} 36... Rxd4 {[%clk
0:00:29.1]} 37. Bc1 {[%clk 0:00:32.5]} 37... b4 {[%clk 0:00:27.8]} 38. Ra7
{[%clk 0:00:27.6]} 38... Rf8 {[%clk 0:00:24.3]} 39. Rxf8+ {[%clk 0:00:23]} 39...
Kxf8 {[%clk 0:00:25.2]} 40. Kf2 {[%clk 0:00:22.7]} 40... Rc4 {[%clk 0:00:23.9]}
41. Be3 {[%clk 0:00:12.7]} 41... Rc2+ {[%clk 0:00:23.2]} 0-1

[Event "*** Titled Tuesday Blitz"]
[Site "Chess.com"]
[Date "2020.11.03"]
[Round "4"]
[White "penguingm1"]
[Black "Bigfish1995"]
[Result "0-1"]
[WhiteElo "2813"]
[BlackElo "3014"]
[TimeControl "180+1"]
[EndTime "10:42:08 PST"]
[Termination "Bigfish1995 won on time"]

1. d4 {[%clk 0:03:00.9]} 1... f5 {[%clk 0:02:58.9]} 2. Nf3 {[%clk 0:03:01.1]}
2... Nf6 {[%clk 0:02:59]} 3. g3 {[%clk 0:03:01.8]} 3... e6 {[%clk 0:02:58.7]} 4.
Bg2 {[%clk 0:03:02.4]} 4... d5 {[%clk 0:02:58.7]} 5. O-O {[%clk 0:03:03]} 5...
Bd6 {[%clk 0:02:59]} 6. c4 {[%clk 0:03:03.6]} 6... c6 {[%clk 0:02:59]} 7. b3
{[%clk 0:03:03.6]} 7... Qe7 {[%clk 0:02:58.2]} 8. Bb2 {[%clk 0:03:03.8]} 8...
O-O {[%clk 0:02:58.2]} 9. Nbd2 {[%clk 0:03:04.1]} 9... Nbd7 {[%clk 0:02:56.5]}
10. Ne5 {[%clk 0:03:04.5]} 10... Ne4 {[%clk 0:02:50.2]} 11. Ndf3 {[%clk
0:03:04.4]} 11... Nxe5 {[%clk 0:02:46.3]} 12. Nxe5 {[%clk 0:02:42.1]} 12... Bd7
{[%clk 0:02:46.3]} 13. Qc2 {[%clk 0:02:32.3]} 13... Be8 {[%clk 0:02:45]} 14. c5
{[%clk 0:01:54.3]} 14... Bxe5 {[%clk 0:02:10.8]} 15. dxe5 {[%clk 0:01:53.4]}
15... f4 {[%clk 0:02:11.3]} 16. Bd4 {[%clk 0:01:20.5]} 16... Bg6 {[%clk
0:02:06.2]} 17. Qc1 {[%clk 0:01:19.3]} 17... fxg3 {[%clk 0:01:49.1]} 18. hxg3
{[%clk 0:01:17.9]} 18... Rf7 {[%clk 0:01:46.9]} 19. Kh2 {[%clk 0:01:10.7]} 19...
Rf5 {[%clk 0:01:35.5]} 20. Bh3 {[%clk 0:00:40.3]} 20... Rh5 {[%clk 0:01:35.5]}
21. Kg2 {[%clk 0:00:40.3]} 21... Rf8 {[%clk 0:01:13.8]} 22. Bg4 {[%clk
0:00:35.4]} 22... Rg5 {[%clk 0:01:12.3]} 23. Bf3 {[%clk 0:00:27.3]} 23... h6
{[%clk 0:01:05.9]} 24. Rh1 {[%clk 0:00:27.4]} 24... Qf7 {[%clk 0:01:02.9]} 25.
Rh4 {[%clk 0:00:26.1]} 25... Rf5 {[%clk 0:00:59.2]} 26. Qe3 {[%clk 0:00:19.2]}
26... Qe7 {[%clk 0:00:44.5]} 27. Rf1 {[%clk 0:00:08.3]} 27... R5f7 {[%clk
0:00:35.8]} 28. Bxe4 {[%clk 0:00:06.2]} 28... dxe4 {[%clk 0:00:29.8]} 29. Bc3
{[%clk 0:00:04.4]} 29... Rd8 {[%clk 0:00:28.4]} 30. Rf4 {[%clk 0:00:03.7]} 30...
Rd5 {[%clk 0:00:25.7]} 31. Rxf7 {[%clk 0:00:03.9]} 31... Kxf7 {[%clk 0:00:25.3]}
32. b4 {[%clk 0:00:04.3]} 32... a5 {[%clk 0:00:20.6]} 33. a3 {[%clk 0:00:04.3]}
33... a4 {[%clk 0:00:20.5]} 34. Rc1 {[%clk 0:00:04.5]} 34... Qd7 {[%clk
0:00:20.2]} 35. Qf4+ {[%clk 0:00:05]} 35... Kg8 {[%clk 0:00:20]} 36. Qe3 {[%clk
0:00:05.7]} 36... Bf5 {[%clk 0:00:16.2]} 37. Qf4 {[%clk 0:00:05.8]} 37... g5
{[%clk 0:00:15.7]} 38. Qe3 {[%clk 0:00:05.5]} 38... Kg7 {[%clk 0:00:16.3]} 39.
Kg1 {[%clk 0:00:03.3]} 39... Kg6 {[%clk 0:00:16.4]} 40. Kg2 {[%clk 0:00:03.9]}
40... h5 {[%clk 0:00:16.9]} 41. Kg1 {[%clk 0:00:03.5]} 41... h4 {[%clk 0:00:16]}
42. gxh4 {[%clk 0:00:03.9]} 42... gxh4 {[%clk 0:00:16.9]} 43. Kh2 {[%clk
0:00:04.5]} 43... Rd1 {[%clk 0:00:17.3]} 44. Bd2 {[%clk 0:00:04.3]} 44... Qxd2
{[%clk 0:00:17.1]} 0-1

[Event "*** Titled Tuesday Blitz"]
[Site "Chess.com"]
[Date "2020.11.03"]
[Round "4"]
[White "TheCairnTerrier"]
[Black "WildTricks"]
[Result "0-1"]
[WhiteElo "2197"]
[BlackElo "2403"]
[TimeControl "180+1"]
[EndTime "10:42:08 PST"]
[Termination "WildTricks won on time"]

1. e4 {[%clk 0:03:00.9]} 1... c5 {[%clk 0:02:59.5]} 2. Nf3 {[%clk 0:02:59.7]}
2... d6 {[%clk 0:02:59.5]} 3. Bb5+ {[%clk 0:02:59.6]} 3... Nd7 {[%clk
0:02:58.8]} 4. O-O {[%clk 0:02:59.3]} 4... a6 {[%clk 0:02:58.5]} 5. Bxd7+ {[%clk
0:02:58.7]} 5... Bxd7 {[%clk 0:02:59.4]} 6. Re1 {[%clk 0:02:50.5]} 6... g6
{[%clk 0:02:49.3]} 7. c3 {[%clk 0:02:49.5]} 7... Bg7 {[%clk 0:02:38.9]} 8. d4
{[%clk 0:02:49]} 8... Nf6 {[%clk 0:02:35.5]} 9. e5 {[%clk 0:02:42.1]} 9... dxe5
{[%clk 0:02:27]} 10. Nxe5 {[%clk 0:02:41.1]} 10... O-O {[%clk 0:02:24.5]} 11.
Nxd7 {[%clk 0:02:35.4]} 11... Nxd7 {[%clk 0:02:24.2]} 12. Be3 {[%clk 0:02:16.7]}
12... Qb6 {[%clk 0:02:11.6]} 13. Nd2 {[%clk 0:01:27.6]} 13... cxd4 {[%clk
0:02:04.2]} 14. Nc4 {[%clk 0:01:24]} 14... Qc7 {[%clk 0:01:50.9]} 15. Bxd4
{[%clk 0:01:22]} 15... e5 {[%clk 0:01:50]} 16. Be3 {[%clk 0:01:19.4]} 16... Rad8
{[%clk 0:01:33.6]} 17. Qb3 {[%clk 0:01:12.7]} 17... b5 {[%clk 0:01:21.3]} 18.
Nd2 {[%clk 0:01:08.4]} 18... Nc5 {[%clk 0:01:05.9]} 19. Bxc5 {[%clk 0:01:08.4]}
19... Qxc5 {[%clk 0:01:06.6]} 20. Ne4 {[%clk 0:01:09.3]} 20... Qc6 {[%clk
0:01:05.7]} 21. a4 {[%clk 0:01:05]} 21... h6 {[%clk 0:00:47.6]} 22. axb5 {[%clk
0:01:02]} 22... axb5 {[%clk 0:00:48.5]} 23. Ra7 {[%clk 0:00:54.6]} 23... Kh8
{[%clk 0:00:31.3]} 24. h3 {[%clk 0:00:22.2]} 24... f5 {[%clk 0:00:29.1]} 25. Ng3
{[%clk 0:00:22.5]} 25... e4 {[%clk 0:00:25.7]} 26. Rf7 {[%clk 0:00:20]} 26...
Rxf7 {[%clk 0:00:24]} 27. Qxf7 {[%clk 0:00:19]} 27... Rd2 {[%clk 0:00:23.6]} 28.
Ra1 {[%clk 0:00:11.3]} 28... Rd7 {[%clk 0:00:13.5]} 29. Qe8+ {[%clk 0:00:10.7]}
29... Kh7 {[%clk 0:00:13.4]} 30. Ra8 {[%clk 0:00:10.9]} 30... Rd1+ {[%clk
0:00:13.5]} 31. Kh2 {[%clk 0:00:10.5]} 31... Qxe8 {[%clk 0:00:13.8]} 32. Rxe8
{[%clk 0:00:09.9]} 32... Rd2 {[%clk 0:00:14.4]} 33. b4 {[%clk 0:00:08.2]} 33...
Rxf2 {[%clk 0:00:14]} 34. Rb8 {[%clk 0:00:05.8]} 34... Bxc3 {[%clk 0:00:11.9]}
35. Rxb5 {[%clk 0:00:05]} 35... h5 {[%clk 0:00:12]} 36. Rb6 {[%clk 0:00:02.3]}
36... h4 {[%clk 0:00:11.1]} 37. Nh1 {[%clk 0:00:01.4]} 37... Rf1 {[%clk
0:00:09.7]} 0-1